[Event "Titled Tuesday Blitz May 03 Late 2022"]
[White "Mekhane, Adam"]
[Black "Hnydiuk, Aleksander"]
[WhiteFideId "36050601"]
[BlackFideId "1109057"]
[WhiteElo "2002"]
[BlackElo "2374"]
[Result "0-1"]
[Round "06"]
[TimeControl "180+1"]
[Date "2022.05.03"]
[WhiteClock "0:00:01"]
[BlackClock "0:00:15"]

1. e4 {[%clk 0:03:00]}  c5 {[%clk 0:02:59]} 2. Nf3 {[%clk 0:03:00]}  e6 {[%clk 0:03:00]} 3. d4 {[%clk 0:02:59]}  cxd4 {[%clk 0:03:01]} 4. Nxd4 {[%clk 0:03:00]}  Nc6 {[%clk 0:03:02]} 5. Nc3 {[%clk 0:02:59]}  a6 {[%clk 0:03:02]} 6. f4 {[%clk 0:02:56]}  Qc7 {[%clk 0:02:47]} 7. Nxc6 {[%clk 0:02:48]}  bxc6 {[%clk 0:02:41]} 8. Be3 {[%clk 0:02:47]}  d5 {[%clk 0:02:41]} 9. Be2 {[%clk 0:02:44]}  Rb8 {[%clk 0:02:38]} 10. b3 {[%clk 0:02:38]}  Bb4 {[%clk 0:02:32]} 11. Qd3 {[%clk 0:02:33]}  Nf6 {[%clk 0:02:30]} 12. O-O {[%clk 0:02:27]}  Qa5 {[%clk 0:02:10]} 13. Bd4 {[%clk 0:01:55]}  O-O {[%clk 0:01:53]} 14. Qg3 {[%clk 0:01:38]}  Bc5 {[%clk 0:01:49]} 15. Bxc5 {[%clk 0:01:27]}  Qxc5+ {[%clk 0:01:50]} 16. Kh1 {[%clk 0:01:27]}  d4 {[%clk 0:01:50]} 17. e5 {[%clk 0:01:28]}  Qxc3 {[%clk 0:01:45]} 18. Qxc3 {[%clk 0:01:09]}  dxc3 {[%clk 0:01:46]} 19. exf6 {[%clk 0:01:09]}  gxf6 {[%clk 0:01:47]} 20. Rad1 {[%clk 0:00:56]}  a5 {[%clk 0:01:44]} 21. a4 {[%clk 0:00:50]}  Rb4 {[%clk 0:01:37]} 22. Rd6 {[%clk 0:00:48]}  Bb7 {[%clk 0:01:35]} 23. Rf3 {[%clk 0:00:37]}  Re4 {[%clk 0:01:26]} 24. Bd3 {[%clk 0:00:22]}  Re1+ {[%clk 0:01:24]} 25. Rf1 {[%clk 0:00:22]}  Re3 {[%clk 0:01:17]} 26. Kg1 {[%clk 0:00:17]}  c5 {[%clk 0:00:35]} 27. Kf2 {[%clk 0:00:17]}  Rxd3 {[%clk 0:00:35]} 28. Rxd3 {[%clk 0:00:16]}  Ba6 {[%clk 0:00:34]} 29. Rxc3 {[%clk 0:00:15]}  Bxf1 {[%clk 0:00:35]} 30. Kxf1 {[%clk 0:00:14]}  Rc8 {[%clk 0:00:36]} 31. Ke2 {[%clk 0:00:11]}  Kf8 {[%clk 0:00:35]} 32. Ke3 {[%clk 0:00:11]}  Ke7 {[%clk 0:00:35]} 33. Kd3 {[%clk 0:00:11]}  Kd6 {[%clk 0:00:36]} 34. Kc4 {[%clk 0:00:11]}  Rb8 {[%clk 0:00:35]} 35. Rd3+ {[%clk 0:00:11]}  Kc6 {[%clk 0:00:36]} 36. Rh3 {[%clk 0:00:11]}  Rb4+ {[%clk 0:00:35]} 37. Kc3 {[%clk 0:00:10]}  Rxf4 {[%clk 0:00:35]} 38. Rxh7 {[%clk 0:00:10]}  Rf2 {[%clk 0:00:32]} 39. Rxf7 {[%clk 0:00:11]}  f5 {[%clk 0:00:33]} 40. g4 {[%clk 0:00:09]}  f4 {[%clk 0:00:32]} 41. g5 {[%clk 0:00:07]}  Kd5 {[%clk 0:00:27]} 42. g6 {[%clk 0:00:05]}  e5 {[%clk 0:00:27]} 43. g7 {[%clk 0:00:04]}  Rg2 {[%clk 0:00:27]} 44. h4 {[%clk 0:00:04]}  f3 {[%clk 0:00:22]} 45. h5 {[%clk 0:00:04]}  Ke6 {[%clk 0:00:20]} 46. Rxf3 {[%clk 0:00:01]}  Rxg7 {[%clk 0:00:19]} 47. Kc4 {[%clk 0:00:01]}  Rc7 {[%clk 0:00:15]} 0-1


[Site "https://www.chess.com"]

[Event "Titled Tuesday Blitz May 03 Late 2022"]
[White "Melaugh, Shane"]
[Black "Ezat, Mohamed"]
[WhiteFideId "2509580"]
[BlackFideId "10600906"]
[WhiteElo "1972"]
[BlackElo "2386"]
[Result "0-1"]
[Round "06"]
[TimeControl "180+1"]
[Date "2022.05.03"]
[WhiteClock "0:00:09"]
[BlackClock "0:01:32"]

1. e4 {[%clk 0:03:00]}  c6 {[%clk 0:02:59]} 2. d4 {[%clk 0:03:00]}  d5 {[%clk 0:02:59]} 3. exd5 {[%clk 0:03:01]}  cxd5 {[%clk 0:02:58]} 4. Bf4 {[%clk 0:03:02]}  Nf6 {[%clk 0:02:58]} 5. Nc3 {[%clk 0:03:02]}  a6 {[%clk 0:02:55]} 6. Nf3 {[%clk 0:03:02]}  Nc6 {[%clk 0:02:55]} 7. Be2 {[%clk 0:03:02]}  Bg4 {[%clk 0:02:55]} 8. O-O {[%clk 0:03:01]}  e6 {[%clk 0:02:55]} 9. Ne5 {[%clk 0:03:01]}  Bxe2 {[%clk 0:02:54]} 10. Nxe2 {[%clk 0:03:02]}  Bd6 {[%clk 0:02:53]} 11. Nxc6 {[%clk 0:02:55]}  bxc6 {[%clk 0:02:52]} 12. c3 {[%clk 0:02:54]}  O-O {[%clk 0:02:51]} 13. Qc1 {[%clk 0:02:50]}  c5 {[%clk 0:02:48]} 14. dxc5 {[%clk 0:02:25]}  Bxc5 {[%clk 0:02:46]} 15. Bg5 {[%clk 0:02:23]}  Be7 {[%clk 0:02:44]} 16. Nd4 {[%clk 0:02:23]}  Qd7 {[%clk 0:02:41]} 17. Qf4 {[%clk 0:02:06]}  h6 {[%clk 0:02:35]} 18. Bxf6 {[%clk 0:02:01]}  Bxf6 {[%clk 0:02:34]} 19. Nb3 {[%clk 0:01:55]}  a5 {[%clk 0:02:34]} 20. Rad1 {[%clk 0:01:45]}  a4 {[%clk 0:02:33]} 21. Nc5 {[%clk 0:01:40]}  Qb5 {[%clk 0:02:32]} 22. Qb4 {[%clk 0:01:02]}  Qxb4 {[%clk 0:02:31]} 23. cxb4 {[%clk 0:01:02]}  Bxb2 {[%clk 0:02:30]} 24. Rb1 {[%clk 0:00:57]}  Bd4 {[%clk 0:02:26]} 25. Rfd1 {[%clk 0:00:52]}  Bxc5 {[%clk 0:02:26]} 26. bxc5 {[%clk 0:00:53]}  Rfb8 {[%clk 0:02:24]} 27. Kf1 {[%clk 0:00:53]}  Rxb1 {[%clk 0:02:24]} 28. Rxb1 {[%clk 0:00:54]}  Rc8 {[%clk 0:02:24]} 29. Rb5 {[%clk 0:00:53]}  Kf8 {[%clk 0:02:22]} 30. Ke2 {[%clk 0:00:53]}  Ke7 {[%clk 0:02:22]} 31. Kd3 {[%clk 0:00:50]}  e5 {[%clk 0:02:21]} 32. c6 {[%clk 0:00:48]}  Kd6 {[%clk 0:02:21]} 33. Ra5 {[%clk 0:00:47]}  Rxc6 {[%clk 0:02:19]} 34. Rxa4 {[%clk 0:00:47]}  f5 {[%clk 0:02:17]} 35. Ra7 {[%clk 0:00:43]}  e4+ {[%clk 0:02:16]} 36. Kd2 {[%clk 0:00:42]}  g5 {[%clk 0:02:15]} 37. a4 {[%clk 0:00:42]}  Rb6 {[%clk 0:02:11]} 38. Kc2 {[%clk 0:00:40]}  d4 {[%clk 0:02:09]} 39. a5 {[%clk 0:00:34]}  d3+ {[%clk 0:02:09]} 40. Kc3 {[%clk 0:00:34]}  Rc6+ {[%clk 0:02:09]} 41. Kd2 {[%clk 0:00:32]}  Rc2+ {[%clk 0:02:09]} 42. Ke1 {[%clk 0:00:33]}  f4 {[%clk 0:02:07]} 43. Ra8 {[%clk 0:00:21]}  Ra2 {[%clk 0:01:56]} 44. a6 {[%clk 0:00:19]}  d2+ {[%clk 0:01:53]} 45. Ke2 {[%clk 0:00:18]}  e3 {[%clk 0:01:51]} 46. fxe3 {[%clk 0:00:18]}  fxe3 {[%clk 0:01:49]} 47. Rh8 {[%clk 0:00:18]}  Kc5 {[%clk 0:01:33]} 48. Rxh6 {[%clk 0:00:18]}  Ra1 {[%clk 0:01:33]} 49. Kxe3 {[%clk 0:00:09]}  d1=Q {[%clk 0:01:32]} 50. a7 {[%clk 0:00:09]}  Qd4+ {[%clk 0:01:32]} 51. Kf3 {[%clk 0:00:09]}  Ra3+ {[%clk 0:01:31]} 52. Ke2 {[%clk 0:00:09]}  Qb2+ {[%clk 0:01:31]} 53. Kf1 {[%clk 0:00:09]}  Ra1# {[%clk 0:01:32]} 0-1


[Site "https://www.chess.com"]

[Event "Titled Tuesday Blitz May 03 Late 2022"]
[White "Melikyan, Gnel"]
[Black "Moskalenko, Alexander"]
[WhiteFideId "54109990"]
[BlackFideId "4155351"]
[WhiteElo "1772"]
[BlackElo "2434"]
[Result "1/2-1/2"]
[Round "06"]
[TimeControl "180+1"]
[Date "2022.05.03"]
[WhiteClock "0:00:07"]
[BlackClock "0:00:39"]

1. e4 {[%clk 0:03:00]}  e6 {[%clk 0:02:56]} 2. d4 {[%clk 0:02:59]}  d5 {[%clk 0:02:56]} 3. e5 {[%clk 0:03:00]}  c5 {[%clk 0:02:52]} 4. c3 {[%clk 0:02:59]}  Nc6 {[%clk 0:02:47]} 5. Nf3 {[%clk 0:02:57]}  Qb6 {[%clk 0:02:43]} 6. a3 {[%clk 0:02:56]}  c4 {[%clk 0:02:43]} 7. Nbd2 {[%clk 0:02:54]}  Na5 {[%clk 0:02:42]} 8. g3 {[%clk 0:02:54]}  Bd7 {[%clk 0:02:41]} 9. h4 {[%clk 0:02:51]}  Ne7 {[%clk 0:02:42]} 10. Bg2 {[%clk 0:02:48]}  Nc8 {[%clk 0:02:37]} 11. O-O {[%clk 0:02:48]}  Qc7 {[%clk 0:02:37]} 12. Re1 {[%clk 0:02:46]}  Nb6 {[%clk 0:02:34]} 13. Rb1 {[%clk 0:02:44]}  Ba4 {[%clk 0:02:33]} 14. Qe2 {[%clk 0:02:42]}  Bc2 {[%clk 0:02:34]} 15. Ra1 {[%clk 0:02:41]}  h6 {[%clk 0:02:34]} 16. Nh2 {[%clk 0:02:33]}  Bd3 {[%clk 0:02:33]} 17. Qd1 {[%clk 0:02:30]}  Be7 {[%clk 0:02:19]} 18. Bf1 {[%clk 0:02:26]}  Bxf1 {[%clk 0:02:18]} 19. Ndxf1 {[%clk 0:02:22]}  Qc6 {[%clk 0:02:19]} 20. Qg4 {[%clk 0:02:19]}  g6 {[%clk 0:02:13]} 21. h5 {[%clk 0:02:15]}  g5 {[%clk 0:02:02]} 22. Rb1 {[%clk 0:02:08]}  Qa4 {[%clk 0:02:01]} 23. Qe2 {[%clk 0:01:59]}  O-O-O {[%clk 0:01:55]} 24. Ng4 {[%clk 0:01:58]}  Rdg8 {[%clk 0:01:53]} 25. Nfe3 {[%clk 0:01:53]}  Nb3 {[%clk 0:01:51]} 26. Qf3 {[%clk 0:01:46]}  Rh7 {[%clk 0:01:43]} 27. Nf6 {[%clk 0:01:43]}  Bxf6 {[%clk 0:01:42]} 28. exf6 {[%clk 0:01:41]}  Nd7 {[%clk 0:01:41]} 29. Ng4 {[%clk 0:01:24]}  Nxc1 {[%clk 0:01:35]} 30. Rexc1 {[%clk 0:01:21]}  Qb3 {[%clk 0:01:35]} 31. Kh2 {[%clk 0:01:07]}  b6 {[%clk 0:01:35]} 32. Re1 {[%clk 0:01:06]}  Kb7 {[%clk 0:01:35]} 33. Re2 {[%clk 0:01:06]}  a5 {[%clk 0:01:31]} 34. Rbe1 {[%clk 0:01:00]}  Ka6 {[%clk 0:01:31]} 35. Ne3 {[%clk 0:00:48]}  Qb5 {[%clk 0:01:22]} 36. Ng4 {[%clk 0:00:26]}  Qc6 {[%clk 0:01:21]} 37. Kg2 {[%clk 0:00:25]}  Qd6 {[%clk 0:01:19]} 38. Qe3 {[%clk 0:00:25]}  Rhh8 {[%clk 0:01:19]} 39. Qc1 {[%clk 0:00:24]}  Rc8 {[%clk 0:01:15]} 40. Qc2 {[%clk 0:00:23]}  b5 {[%clk 0:01:15]} 41. Rb1 {[%clk 0:00:21]}  a4 {[%clk 0:01:06]} 42. Qd2 {[%clk 0:00:19]}  Rcg8 {[%clk 0:01:05]} 43. Qe3 {[%clk 0:00:19]}  Kb7 {[%clk 0:01:05]} 44. Qf3 {[%clk 0:00:19]}  Nb8 {[%clk 0:01:02]} 45. Ne5 {[%clk 0:00:18]}  Rf8 {[%clk 0:01:02]} 46. Ng6 {[%clk 0:00:15]}  fxg6 {[%clk 0:01:01]} 47. hxg6 {[%clk 0:00:16]}  Rhg8 {[%clk 0:01:01]} 48. g7 {[%clk 0:00:12]}  Rf7 {[%clk 0:01:01]} 49. Rbe1 {[%clk 0:00:12]}  e5 {[%clk 0:00:40]} 50. Rxe5 {[%clk 0:00:07]}  Rxf6 {[%clk 0:00:39]} 1/2-1/2


[Site "https://www.chess.com"]

[Event "Titled Tuesday Blitz May 03 Late 2022"]
[White "Migot, Tangi"]
[Black "Diaz, Fernando"]
[WhiteFideId "662445"]
[BlackFideId "3701255"]
[WhiteElo "2500"]
[BlackElo "1934"]
[Result "1-0"]
[Round "06"]
[TimeControl "180+1"]
[Date "2022.05.03"]
[WhiteClock "0:02:05"]
[BlackClock "0:01:41"]

1. c3 {[%clk 0:03:00]}  e5 {[%clk 0:02:59]} 2. d4 {[%clk 0:03:00]}  exd4 {[%clk 0:03:00]} 3. cxd4 {[%clk 0:03:01]}  d5 {[%clk 0:03:00]} 4. Nc3 {[%clk 0:03:01]}  c6 {[%clk 0:03:01]} 5. h4 {[%clk 0:03:00]}  h6 {[%clk 0:02:57]} 6. h5 {[%clk 0:03:00]}  Nf6 {[%clk 0:02:56]} 7. Bf4 {[%clk 0:02:58]}  Bg4 {[%clk 0:02:56]} 8. Qc2 {[%clk 0:02:55]}  Bxh5 {[%clk 0:02:50]} 9. e4 {[%clk 0:02:53]}  Bg6 {[%clk 0:02:42]} 10. f3 {[%clk 0:02:50]}  dxe4 {[%clk 0:02:41]} 11. O-O-O {[%clk 0:02:49]}  exf3 {[%clk 0:02:39]} 12. Qb3 {[%clk 0:02:49]}  f2 {[%clk 0:02:26]} 13. Nf3 {[%clk 0:02:46]}  Qb6 {[%clk 0:02:25]} 14. Qa4 {[%clk 0:02:34]}  Nbd7 {[%clk 0:02:19]} 15. Ne5 {[%clk 0:02:30]}  O-O-O {[%clk 0:02:10]} 16. Nxc6 {[%clk 0:02:13]}  Nc5 {[%clk 0:01:41]} 17. Nxa7+ {[%clk 0:02:05]} 1-0


[Site "https://www.chess.com"]

[Event "Titled Tuesday Blitz May 03 Late 2022"]
[White "Mikhalsky, Vladimir"]
[Black "Fernandez Hernandez, Gerardo"]
[WhiteFideId "14144352"]
[BlackFideId "2207400"]
[WhiteElo "2301"]
[BlackElo "2199"]
[Result "1-0"]
[Round "06"]
[TimeControl "180+1"]
[Date "2022.05.03"]
[WhiteClock "0:02:04"]
[BlackClock "0:01:39"]

1. d4 {[%clk 0:03:00]}  Nf6 {[%clk 0:02:59]} 2. c4 {[%clk 0:03:00]}  c5 {[%clk 0:02:58]} 3. d5 {[%clk 0:03:00]}  b5 {[%clk 0:02:59]} 4. cxb5 {[%clk 0:03:00]}  a6 {[%clk 0:02:59]} 5. bxa6 {[%clk 0:02:59]}  g6 {[%clk 0:02:59]} 6. Nc3 {[%clk 0:02:58]}  Bg7 {[%clk 0:03:00]} 7. g3 {[%clk 0:02:56]}  O-O {[%clk 0:02:59]} 8. Bg2 {[%clk 0:02:56]}  d6 {[%clk 0:02:58]} 9. Nf3 {[%clk 0:02:56]}  Nxa6 {[%clk 0:02:47]} 10. O-O {[%clk 0:02:55]}  Qb6 {[%clk 0:02:35]} 11. e4 {[%clk 0:02:53]}  Bg4 {[%clk 0:02:28]} 12. h3 {[%clk 0:02:50]}  Bxf3 {[%clk 0:02:27]} 13. Bxf3 {[%clk 0:02:48]}  Rfb8 {[%clk 0:02:19]} 14. Bg2 {[%clk 0:02:41]}  Nb4 {[%clk 0:02:17]} 15. a3 {[%clk 0:02:39]}  c4 {[%clk 0:02:15]} 16. Be3 {[%clk 0:02:36]}  Qc7 {[%clk 0:01:58]} 17. axb4 {[%clk 0:02:34]}  Rxa1 {[%clk 0:01:55]} 18. Qxa1 {[%clk 0:02:34]}  Rxb4 {[%clk 0:01:55]} 19. Qa8+ {[%clk 0:02:09]}  Rb8 {[%clk 0:01:54]} 20. Qc6 {[%clk 0:02:09]}  Qxc6 {[%clk 0:01:46]} 21. dxc6 {[%clk 0:02:09]}  Rc8 {[%clk 0:01:47]} 22. Nd5 {[%clk 0:02:05]}  Rxc6 {[%clk 0:01:39]} 23. Nxe7+ {[%clk 0:02:04]} 1-0


[Site "https://www.chess.com"]

[Event "Titled Tuesday Blitz May 03 Late 2022"]
[White "Narayanan.S.L"]
[Black "Abdyzhapar, Asylbek"]
[WhiteFideId "5058422"]
[BlackFideId "13800337"]
[WhiteElo "2494"]
[BlackElo "2331"]
[Result "1-0"]
[Round "06"]
[TimeControl "180+1"]
[Date "2022.05.03"]
[WhiteClock "0:01:29"]
[BlackClock "0:00:31"]

1. Nf3 {[%clk 0:02:59]}  Nf6 {[%clk 0:03:00]} 2. c4 {[%clk 0:02:59]}  g6 {[%clk 0:02:59]} 3. g3 {[%clk 0:02:58]}  Bg7 {[%clk 0:02:59]} 4. Bg2 {[%clk 0:02:59]}  O-O {[%clk 0:03:00]} 5. O-O {[%clk 0:02:59]}  d6 {[%clk 0:03:00]} 6. d4 {[%clk 0:03:00]}  Nc6 {[%clk 0:03:00]} 7. d5 {[%clk 0:02:59]}  Na5 {[%clk 0:02:59]} 8. Nfd2 {[%clk 0:02:59]}  c5 {[%clk 0:02:59]} 9. Nc3 {[%clk 0:02:51]}  a6 {[%clk 0:02:58]} 10. a4 {[%clk 0:02:51]}  e5 {[%clk 0:02:52]} 11. e4 {[%clk 0:02:44]}  Nh5 {[%clk 0:02:49]} 12. b3 {[%clk 0:02:42]}  Bh6 {[%clk 0:02:43]} 13. Rb1 {[%clk 0:02:39]}  Ng7 {[%clk 0:02:37]} 14. Nf3 {[%clk 0:02:38]}  Bxc1 {[%clk 0:02:33]} 15. Qxc1 {[%clk 0:02:39]}  Bg4 {[%clk 0:02:21]} 16. Nd2 {[%clk 0:02:37]}  Bd7 {[%clk 0:02:18]} 17. Ne2 {[%clk 0:02:32]}  f5 {[%clk 0:02:18]} 18. f4 {[%clk 0:02:33]}  Qe7 {[%clk 0:02:11]} 19. Qc3 {[%clk 0:02:32]}  b6 {[%clk 0:02:09]} 20. Rbe1 {[%clk 0:02:32]}  Rae8 {[%clk 0:02:04]} 21. Nc1 {[%clk 0:02:25]}  exf4 {[%clk 0:02:01]} 22. gxf4 {[%clk 0:02:24]}  fxe4 {[%clk 0:01:50]} 23. Nxe4 {[%clk 0:02:23]}  Qh4 {[%clk 0:01:29]} 24. Nxd6 {[%clk 0:02:06]}  Rxe1 {[%clk 0:01:29]} 25. Qxe1 {[%clk 0:02:06]}  Qxe1 {[%clk 0:01:23]} 26. Rxe1 {[%clk 0:02:06]}  Rxf4 {[%clk 0:01:24]} 27. Re7 {[%clk 0:02:06]}  Bg4 {[%clk 0:01:16]} 28. h3 {[%clk 0:02:04]}  Bh5 {[%clk 0:01:09]} 29. Nd3 {[%clk 0:01:59]}  Rd4 {[%clk 0:01:04]} 30. Ne5 {[%clk 0:01:59]}  Nf5 {[%clk 0:00:50]} 31. Nxf5 {[%clk 0:01:43]}  gxf5 {[%clk 0:00:50]} 32. Re6 {[%clk 0:01:43]}  Rd1+ {[%clk 0:00:42]} 33. Kh2 {[%clk 0:01:43]}  Rd2 {[%clk 0:00:42]} 34. Rxb6 {[%clk 0:01:42]}  f4 {[%clk 0:00:41]} 35. Rf6 {[%clk 0:01:41]}  Nxb3 {[%clk 0:00:38]} 36. Rxf4 {[%clk 0:01:41]}  Nd4 {[%clk 0:00:37]} 37. d6 {[%clk 0:01:30]}  Ne6 {[%clk 0:00:36]} 38. Rf5 {[%clk 0:01:30]}  Be8 {[%clk 0:00:32]} 39. d7 {[%clk 0:01:28]}  Bxd7 {[%clk 0:00:32]} 40. Nxd7 {[%clk 0:01:29]}  Rxd7 {[%clk 0:00:31]} 41. Bd5 {[%clk 0:01:29]}  Re7 {[%clk 0:00:31]} 42. Rf6 {[%clk 0:01:29]}  Kg7 {[%clk 0:00:31]} 43. Rxe6 {[%clk 0:01:29]}  Rc7 {[%clk 0:00:31]} 44. Rxa6 {[%clk 0:01:29]} 1-0


[Site "https://www.chess.com"]

[Event "Titled Tuesday Blitz May 03 Late 2022"]
[White "Ohanyan, Emin"]
[Black "Karttunen, Mika"]
[WhiteFideId "13312022"]
[BlackFideId "502081"]
[WhiteElo "1927"]
[BlackElo "2343"]
[Result "0-1"]
[Round "06"]
[TimeControl "180+1"]
[Date "2022.05.03"]
[WhiteClock "0:00:14"]
[BlackClock "0:00:05"]

1. e4 {[%clk 0:02:52]}  c6 {[%clk 0:02:58]} 2. d4 {[%clk 0:02:52]}  d5 {[%clk 0:02:58]} 3. Nc3 {[%clk 0:02:52]}  dxe4 {[%clk 0:02:57]} 4. Nxe4 {[%clk 0:02:53]}  Nd7 {[%clk 0:02:57]} 5. Ng5 {[%clk 0:02:52]}  Ngf6 {[%clk 0:02:49]} 6. Bd3 {[%clk 0:02:45]}  e6 {[%clk 0:02:45]} 7. Qe2 {[%clk 0:02:45]}  Bd6 {[%clk 0:02:36]} 8. N1f3 {[%clk 0:02:44]}  O-O {[%clk 0:02:13]} 9. Ne4 {[%clk 0:02:41]}  Be7 {[%clk 0:02:09]} 10. h4 {[%clk 0:02:39]}  Nxe4 {[%clk 0:02:04]} 11. Qxe4 {[%clk 0:02:38]}  Nf6 {[%clk 0:02:04]} 12. Qf4 {[%clk 0:02:37]}  c5 {[%clk 0:01:57]} 13. Qg3 {[%clk 0:00:37]}  Re8 {[%clk 0:01:33]} 14. h5 {[%clk 0:00:33]}  Kh8 {[%clk 0:00:58]} 15. Ng5 {[%clk 0:00:16]}  Rf8 {[%clk 0:00:58]} 16. h6 {[%clk 0:00:14]}  g6 {[%clk 0:00:58]} 17. Bf4 {[%clk 0:00:15]}  Nd5 {[%clk 0:00:52]} 18. Be5+ {[%clk 0:00:13]}  Bf6 {[%clk 0:00:45]} 19. Ne4 {[%clk 0:00:06]}  Bxe5 {[%clk 0:00:42]} 20. dxe5 {[%clk 0:00:07]}  f5 {[%clk 0:00:32]} 21. exf6 {[%clk 0:00:07]}  Nxf6 {[%clk 0:00:32]} 22. Qe5 {[%clk 0:00:07]}  Qd5 {[%clk 0:00:27]} 23. Qc3 {[%clk 0:00:07]}  Qd4 {[%clk 0:00:22]} 24. O-O-O {[%clk 0:00:03]}  Nxe4 {[%clk 0:00:21]} 25. Bxe4 {[%clk 0:00:03]}  Qxc3 {[%clk 0:00:21]} 26. bxc3 {[%clk 0:00:04]}  e5 {[%clk 0:00:20]} 27. Rd5 {[%clk 0:00:03]}  Bf5 {[%clk 0:00:13]} 28. f3 {[%clk 0:00:03]}  Bxe4 {[%clk 0:00:13]} 29. fxe4 {[%clk 0:00:04]}  b6 {[%clk 0:00:12]} 30. Rxe5 {[%clk 0:00:04]}  Rae8 {[%clk 0:00:12]} 31. Rxe8 {[%clk 0:00:02]}  Rxe8 {[%clk 0:00:13]} 32. Re1 {[%clk 0:00:02]}  Re5 {[%clk 0:00:12]} 33. Kd2 {[%clk 0:00:02]}  Kg8 {[%clk 0:00:13]} 34. Ke3 {[%clk 0:00:03]}  Rh5 {[%clk 0:00:13]} 35. Rd1 {[%clk 0:00:03]}  Rxh6 {[%clk 0:00:13]} 36. Rd7 {[%clk 0:00:03]}  Rh2 {[%clk 0:00:13]} 37. Kf3 {[%clk 0:00:04]}  Rh1 {[%clk 0:00:13]} 38. e5 {[%clk 0:00:03]}  Re1 {[%clk 0:00:13]} 39. Kf4 {[%clk 0:00:04]}  h6 {[%clk 0:00:12]} 40. Rxa7 {[%clk 0:00:03]}  Re2 {[%clk 0:00:08]} 41. g4 {[%clk 0:00:03]}  Rf2+ {[%clk 0:00:07]} 42. Ke4 {[%clk 0:00:03]}  h5 {[%clk 0:00:04]} 43. gxh5 {[%clk 0:00:03]}  gxh5 {[%clk 0:00:05]} 44. e6 {[%clk 0:00:04]}  h4 {[%clk 0:00:04]} 45. Ke3 {[%clk 0:00:02]}  Rf1 {[%clk 0:00:04]} 46. Kd2 {[%clk 0:00:01]}  Rf8 {[%clk 0:00:03]} 47. Rd7 {[%clk 0:00:01]}  h3 {[%clk 0:00:02]} 48. e7 {[%clk 0:00:01]}  Re8 {[%clk 0:00:03]} 49. Rd6 {[%clk 0:00:02]}  Rxe7 {[%clk 0:00:03]} 50. Rg6+ {[%clk 0:00:02]}  Rg7 {[%clk 0:00:02]} 51. Re6 {[%clk 0:00:02]}  h2 {[%clk 0:00:02]} 52. Re8+ {[%clk 0:00:02]}  Kh7 {[%clk 0:00:02]} 53. Re1 {[%clk 0:00:03]}  Rg1 {[%clk 0:00:02]} 54. Re7+ {[%clk 0:00:03]}  Kg8 {[%clk 0:00:02]} 55. Re8+ {[%clk 0:00:04]}  Kg7 {[%clk 0:00:03]} 56. Re4 {[%clk 0:00:04]}  h1=Q {[%clk 0:00:02]} 57. Re7+ {[%clk 0:00:05]}  Kf6 {[%clk 0:00:03]} 58. Re2 {[%clk 0:00:06]}  Qf3 {[%clk 0:00:02]} 59. Rf2 {[%clk 0:00:06]}  Qxf2+ {[%clk 0:00:02]} 60. Kd3 {[%clk 0:00:07]}  Rg4 {[%clk 0:00:02]} 61. c4 {[%clk 0:00:07]}  Rd4+ {[%clk 0:00:02]} 62. Kc3 {[%clk 0:00:08]}  Qd2+ {[%clk 0:00:02]} 63. Kb3 {[%clk 0:00:09]}  Qe3+ {[%clk 0:00:03]} 64. Ka4 {[%clk 0:00:09]}  Rxc4+ {[%clk 0:00:03]} 65. Kb5 {[%clk 0:00:10]}  Qc3 {[%clk 0:00:03]} 66. Kc6 {[%clk 0:00:11]}  Qxc2 {[%clk 0:00:03]} 67. Kb7 {[%clk 0:00:12]}  Rd4 {[%clk 0:00:04]} 68. a4 {[%clk 0:00:13]}  c4 {[%clk 0:00:04]} 69. a5 {[%clk 0:00:14]}  bxa5 {[%clk 0:00:05]} 0-1


[Site "https://www.chess.com"]

[Event "Titled Tuesday Blitz May 03 Late 2022"]
[White "Papasimakopoulos, Alexandros"]
[Black "Bluebaum, Matthias"]
[WhiteFideId "4244125"]
[BlackFideId "24651516"]
[WhiteElo "2340"]
[BlackElo "2550"]
[Result "1-0"]
[Round "06"]
[TimeControl "180+1"]
[Date "2022.05.03"]
[WhiteClock "0:00:34"]
[BlackClock "0:00:07"]

1. d4 {[%clk 0:03:00]}  Nf6 {[%clk 0:03:00]} 2. c4 {[%clk 0:03:01]}  e6 {[%clk 0:02:57]} 3. Nc3 {[%clk 0:03:01]}  Bb4 {[%clk 0:02:56]} 4. Qc2 {[%clk 0:03:02]}  d5 {[%clk 0:02:56]} 5. cxd5 {[%clk 0:03:02]}  exd5 {[%clk 0:02:57]} 6. Bg5 {[%clk 0:03:02]}  h6 {[%clk 0:02:58]} 7. Bh4 {[%clk 0:03:03]}  g5 {[%clk 0:02:58]} 8. Bg3 {[%clk 0:03:03]}  Nc6 {[%clk 0:02:59]} 9. e3 {[%clk 0:03:03]}  h5 {[%clk 0:02:54]} 10. Bb5 {[%clk 0:03:03]}  h4 {[%clk 0:02:53]} 11. Be5 {[%clk 0:03:04]}  O-O {[%clk 0:02:54]} 12. Bxc6 {[%clk 0:03:04]}  bxc6 {[%clk 0:02:55]} 13. h3 {[%clk 0:03:05]}  Ne4 {[%clk 0:02:50]} 14. Ne2 {[%clk 0:03:05]}  f6 {[%clk 0:02:50]} 15. Bh2 {[%clk 0:03:05]}  Qe7 {[%clk 0:02:27]} 16. O-O {[%clk 0:03:04]}  Bxc3 {[%clk 0:02:17]} 17. Nxc3 {[%clk 0:03:03]}  Nd6 {[%clk 0:02:09]} 18. Na4 {[%clk 0:02:59]}  Bd7 {[%clk 0:02:08]} 19. Nc5 {[%clk 0:02:49]}  Be8 {[%clk 0:02:07]} 20. Qa4 {[%clk 0:02:34]}  Kg7 {[%clk 0:02:04]} 21. Rae1 {[%clk 0:02:30]}  Nc4 {[%clk 0:01:44]} 22. Re2 {[%clk 0:02:25]}  Nb6 {[%clk 0:01:40]} 23. Qa6 {[%clk 0:02:19]}  Bg6 {[%clk 0:01:40]} 24. f3 {[%clk 0:02:16]}  Rfe8 {[%clk 0:01:33]} 25. Qb7 {[%clk 0:02:09]}  Nc4 {[%clk 0:01:28]} 26. b3 {[%clk 0:02:03]}  Nd6 {[%clk 0:01:12]} 27. Qxc6 {[%clk 0:02:01]}  Qf7 {[%clk 0:01:13]} 28. Bxd6 {[%clk 0:01:58]}  cxd6 {[%clk 0:01:14]} 29. Qxd6 {[%clk 0:01:59]}  Re7 {[%clk 0:01:10]} 30. e4 {[%clk 0:01:57]}  Rae8 {[%clk 0:01:08]} 31. e5 {[%clk 0:01:48]}  fxe5 {[%clk 0:01:07]} 32. Rxe5 {[%clk 0:01:43]}  Rxe5 {[%clk 0:01:07]} 33. dxe5 {[%clk 0:01:44]}  Kh6 {[%clk 0:01:07]} 34. Rd1 {[%clk 0:01:31]}  Qf4 {[%clk 0:01:00]} 35. Ne6 {[%clk 0:01:25]}  Qe3+ {[%clk 0:00:54]} 36. Kh1 {[%clk 0:01:25]}  Qe2 {[%clk 0:00:43]} 37. Rg1 {[%clk 0:01:21]}  Qxa2 {[%clk 0:00:37]} 38. Nc7 {[%clk 0:01:13]}  Rb8 {[%clk 0:00:28]} 39. Nxd5 {[%clk 0:01:09]}  Qxb3 {[%clk 0:00:25]} 40. Ne7 {[%clk 0:01:03]}  Qb6 {[%clk 0:00:25]} 41. Rd1 {[%clk 0:00:48]}  Qxd6 {[%clk 0:00:18]} 42. Rxd6 {[%clk 0:00:49]}  Rb6 {[%clk 0:00:18]} 43. Nxg6 {[%clk 0:00:46]}  Rb1+ {[%clk 0:00:16]} 44. Kh2 {[%clk 0:00:45]}  Kh5 {[%clk 0:00:16]} 45. Ne7 {[%clk 0:00:38]}  a5 {[%clk 0:00:15]} 46. Ng8 {[%clk 0:00:38]}  g4 {[%clk 0:00:16]} 47. hxg4+ {[%clk 0:00:37]}  Kg5 {[%clk 0:00:16]} 48. e6 {[%clk 0:00:35]}  a4 {[%clk 0:00:15]} 49. e7 {[%clk 0:00:35]}  Re1 {[%clk 0:00:15]} 50. Ra6 {[%clk 0:00:34]}  h3 {[%clk 0:00:14]} 51. Kxh3 {[%clk 0:00:33]}  Kf4 {[%clk 0:00:12]} 52. Rxa4+ {[%clk 0:00:34]}  Kg5 {[%clk 0:00:13]} 53. Re4 {[%clk 0:00:33]}  Rh1+ {[%clk 0:00:08]} 54. Kg3 {[%clk 0:00:34]}  Rh7 {[%clk 0:00:05]} 55. Re5+ {[%clk 0:00:33]}  Kg6 {[%clk 0:00:05]} 56. e8=Q+ {[%clk 0:00:33]}  Kg7 {[%clk 0:00:06]} 57. Rg5+ {[%clk 0:00:33]}  Kh8 {[%clk 0:00:06]} 58. Qe5+ {[%clk 0:00:34]}  Rg7 {[%clk 0:00:07]} 59. Qxg7# {[%clk 0:00:34]} 1-0


[Site "https://www.chess.com"]